fUSD/lending_fUSD_20240407
["ID","MTS","AMOUNT","RATE_DAILY","PERIOD"]
[321763014,1712505047889,-385.9003421,0.00023621,2]
[321763015,1712505047898,-151.11770667,0.00023737,2]
[321763016,1712505047907,-157.30725251,0.000238,2]
[321763017,1712505047918,-242.98,0.000238,2]
[321763018,1712505047928,-168.82531247,0.00023806,2]
[321763019,1712505047939,-168.82531247,0.00023821,2]
[321763020,1712505047949,-151.11770667,0.00023929,2]
[321763021,1712505047959,-151.11770667,0.00023957,2]
[321763022,1712505047969,-155.0,0.0002398,2]
[321763023,1712505047978,-430.99866383,0.00024,2]
[321763024,1712505047987,-942.31001809,0.00024,2]
[321763025,1712505047998,-1977.49843648,0.00024,2]
[321763026,1712505048007,-1000.0,0.00024,2]
[321763027,1712505048017,-150.0,0.00024,2]
[321763028,1712505048026,-151.11770667,0.00024049,2]
[321763029,1712505048035,-792727.06,0.00024064,5]
[321763030,1712505048045,-1500.0,0.0002408,2]
[321763031,1712505048054,-1000.0,0.000241,2]
[321763032,1712505048065,-328.83552218,0.00024153,2]
[321763033,1712505048074,-156.99822526,0.00024169,2]
[321763034,1712505048083,-2463.02,0.000242,2]
[321763035,1712505048093,-1000.0,0.000242,2]
[321763036,1712505048102,-392.76537939,0.0002421,2]
[321763037,1712505048116,-174.21755861,0.00024239,2]
[321763038,1712505048125,-1859.18,0.000243,2]
[321763039,1712505048134,-3263.67,0.00024329,15]
[321763040,1712505048143,-385.9003421,0.00024333,2]
[321763041,1712505048154,-1011.91685372,0.000244,2]
[321763042,1712505048164,-152.43151649,0.0002442,2]
[321763043,1712505048173,-156.99822526,0.00024442,2]
[321763044,1712505048182,-166.7821729,0.00024447,2]
[321763045,1712505048192,-174.21755861,0.00024493,2]
[321763046,1712505048202,-806.65731055,0.000245,2]
[321763047,1712505048211,-280.85252927,0.000245,2]
[321763048,1712505048221,-11093.0,0.000245,2]
[321763049,1712505048231,-150.0,0.000245,2]
[321763050,1712505048241,-264.76980586,0.00024501,2]
[321763051,1712505048250,-242.98,0.00024515,2]
[321763052,1712505048259,-385.9003421,0.00024517,2]
[321763053,1712505048270,-264.76980586,0.0002454,2]
[321763054,1712505048279,-153.40889554,0.00024568,2]
[321763055,1712505048290,-934.0,0.00024576,2]
[321763056,1712505048300,-545.0,0.00024576,2]
[321763057,1712505048311,-543.0,0.00024576,2]
[321763058,1712505048321,-145260.20567781,0.00024602,2]
[321763059,1712505048330,-28564.63015717,0.00024602,2]
[321763060,1712505048339,-145260.20567781,0.00024603,2]
[321763061,1712505048349,-1339.34205498,0.00024604,2]
[321763062,1712505048358,-1339.34205498,0.00024605,2]
[321763063,1712505048367,-1820.6270766,0.00024608,2]
[321763064,1712505048376,-1341.44192382,0.00024611,2]
[321763065,1712505048386,-1341.44192382,0.00024613,2]
[321763066,1712505048395,-290.70747811,0.00024613,2]
[321763067,1712505048404,-28564.63015717,0.00024614,2]
[321763068,1712505048414,-1339.34205498,0.00024615,2]
[321763069,1712505048424,-290.70747811,0.00024618,2]
[321763070,1712505048433,-145260.20567781,0.00024618,2]
[321763071,1712505048442,-1341.44192382,0.00024619,2]
[321763072,1712505048452,-145260.20567781,0.00024619,2]
[321763073,1712505048462,-1339.34205498,0.00024626,2]
[321763074,1712505048471,-145260.20567781,0.0002463,2]
[321763075,1712505048480,-1820.6270766,0.0002463,2]
[321763076,1712505048490,-28564.63015717,0.00024631,2]
[321763077,1712505048499,-290.70747811,0.00024631,2]
[321763078,1712505048508,-28564.63015717,0.00024634,2]
[321763079,1712505048519,-1341.44192382,0.00024635,2]
[321763080,1712505048527,-28564.63015717,0.00024636,2]
[321763081,1712505048536,-290.70747811,0.00024644,2]
[321763082,1712505048545,-1820.6270766,0.00024647,2]
[321763083,1712505048554,-1820.6270766,0.00024648,2]
[321763084,1712505048563,-1339.34205498,0.00024648,2]
[321763085,1712505048572,-1339.34205498,0.0002465,2]
[321763086,1712505048582,-1339.34205498,0.0002465,2]
[321763087,1712505048591,-1341.44192382,0.00024651,2]
[321763088,1712505048602,-1820.6270766,0.00024657,2]
[321763089,1712505048612,-177.18,0.00024658,4]
[321763090,1712505048622,-500.0,0.00024658,2]
[321763091,1712505048632,-290.70747811,0.0002466,2]
[321763092,1712505048642,-1339.34205498,0.00024662,2]
[321763093,1712505048653,-1820.6270766,0.00024664,2]
[321763094,1712505048664,-145260.20567781,0.00024665,2]
[321763095,1712505048674,-290.70747811,0.00024667,2]
[321763096,1712505048684,-1341.44192382,0.0002467,2]
[321763097,1712505048693,-28564.63015717,0.00024672,2]
[321763098,1712505048703,-28564.63015717,0.00024675,2]
[321763099,1712505048714,-1341.44192382,0.00024675,2]
[321763100,1712505048723,-320.0,0.00024678,2]
[321763101,1712505048732,-290.70747811,0.00024679,2]
[321763102,1712505048742,-109072.23353243,0.0002468,2]
[321763103,1712505048752,-290.70747811,0.00024681,2]
[321763104,1712505048762,-290.70747811,0.00024682,2]
[321763105,1712505048773,-1820.6270766,0.00024683,2]
[321763106,1712505048781,-1341.44192382,0.00024686,2]
[321763107,1712505048791,-1820.6270766,0.00024687,2]
[321763108,1712505048800,-1339.34205498,0.00024688,2]
[321763109,1712505048809,-28564.63015717,0.00024688,2]
[321763110,1712505048818,-145260.20567781,0.00024692,2]
[321763111,1712505048827,-145260.20567781,0.00024695,2]
[321763112,1712505048837,-145260.20567781,0.00024697,2]
[321763113,1712505048848,-1820.6270766,0.00024699,2]
[321763114,1712505048858,-1341.44192382,0.00024699,2]
[321763115,1712505048867,-174.21755861,0.00024699,2]
[321763116,1712505048876,-28564.63015717,0.00024699,2]
[321763117,1712505048885,-21352.29,0.000247,2]
[321763118,1712505048894,-156.14696283,0.0002472,2]
[321763119,1712505048903,-264.76980586,0.00024746,2]
[321763120,1712505048914,-6922.41095561,0.0002475,2]
[321763121,1712505048923,-505.23422639,0.0002475,2]
[321763122,1712505048933,-151.33317952,0.00024757,2]
[321763123,1712505048942,-385.9003421,0.00024787,2]
[321763124,1712505048951,-2223.12520782,0.000248,2]
[321763125,1712505048961,-156.99822526,0.00024819,2]
[321763126,1712505048970,-264.76980586,0.00024851,2]
[321763127,1712505048979,-13680.70974568,0.00024857,2]
[321763128,1712505048988,-7383619.25571596,0.0002488,2]
[321763129,1712505048997,-22955.5036395,0.0002489,7]
[321763130,1712505049006,-160.0,0.00024891,2]
[321763131,1712505049016,-5800.0,0.00024892,2]
[321763132,1712505049026,-152.02940673,0.00024896,2]
[321763133,1712505049036,-160.0,0.000249,2]
[321763134,1712505049046,-151.11770667,0.00024902,2]
[321763135,1712505049055,-1809.972895,0.00024914,2]
[321763136,1712505049065,-6511.7698001,0.00024914,2]
[321763137,1712505049074,-110641.7942849,0.00024914,2]
[321763138,1712505049083,-23535.5294984,0.00024914,2]
[321763139,1712505049092,-9625.0880707,0.00024914,2]
[321763140,1712505049101,-158.34567612,0.00024916,2]
[321763141,1712505049111,-502.62739269,0.00024931,2]
[321763142,1712505049122,-500.0,0.00024931,2]
[321763143,1712505049133,-500.0,0.00024931,2]
[321763144,1712505049142,-510.09014544,0.00024931,2]
[321763145,1712505049151,-500.0,0.00024931,2]
[321763146,1712505049160,-500.0,0.00024931,2]
[321763147,1712505049170,-500.0,0.00024931,2]
[321763148,1712505049179,-519.72995918,0.00024931,2]
[321763149,1712505049189,-500.0,0.00024931,2]
[321763150,1712505049199,-509.13110348,0.00024931,2]
[321763151,1712505049209,-553.61735842,0.00024931,2]
[321763152,1712505049219,-500.0,0.00024931,2]
[321763153,1712505049228,-463.43735462,0.00024931,2]
[321763154,1712505049237,-500.0,0.00024931,2]
[321763155,1712505049246,-500.0,0.00024931,2]
[321763156,1712505049256,-304.64846647,0.00024931,2]
[321763157,1712505049267,-500.0,0.00024931,2]
[321763158,1712505049276,-646.41233612,0.00024931,2]
[321763159,1712505049286,-587.90107632,0.00024931,2]
[321763160,1712505049295,-501.60115702,0.00024931,2]
[321763161,1712505049304,-518.37924191,0.00024931,2]
[321763162,1712505049314,-500.0,0.00024931,2]
[321763163,1712505049324,-500.0,0.00024931,2]
[321763164,1712505049333,-500.0,0.00024931,2]
[321763165,1712505049343,-500.0,0.00024931,2]
[321763166,1712505049353,-512.34638291,0.00024931,2]
[321763167,1712505049362,-502.0833219,0.00024931,2]
[321763168,1712505049372,-500.0,0.00024931,2]
[321763169,1712505049381,-448.44006579,0.00024931,2]
[321763170,1712505049391,-503.30193005,0.00024931,2]
[321763171,1712505049400,-499.36146209,0.00024931,2]
[321763172,1712505049410,-581.79200893,0.00024931,2]
[321763173,1712505049419,-226.03199187,0.00024931,2]
[321763174,1712505049429,-500.0,0.00024931,2]
[321763175,1712505049438,-500.0,0.00024931,2]
[321763176,1712505049447,-500.0,0.00024931,2]
[321763177,1712505049456,-504.59084382,0.00024931,2]
[321763178,1712505049466,-500.0,0.00024931,2]
[321763179,1712505049475,-500.0,0.00024931,2]
[321763180,1712505049485,-501.48722222,0.00024931,2]
[321763181,1712505049494,-500.0,0.00024931,2]
[321763182,1712505049504,-500.0,0.00024931,2]
[321763183,1712505049513,-504.28987524,0.00024931,2]
[321763184,1712505049526,-500.0,0.00024931,2]
[321763185,1712505049535,-500.0,0.00024931,2]
[321763186,1712505049545,-503.0454369,0.00024931,2]
[321763187,1712505049554,-500.0,0.00024931,2]
[321763188,1712505049563,-638.71346975,0.00024931,2]
[321763189,1712505049572,-500.0,0.00024931,2]
[321763190,1712505049581,-500.0,0.00024931,2]
[321763191,1712505049590,-320.47490055,0.00024931,2]
[321763192,1712505049599,-500.0,0.00024931,2]
[321763193,1712505049608,-514.23331691,0.00024931,2]
[321763194,1712505049617,-500.0,0.00024931,2]
[321763195,1712505049627,-500.0,0.00024931,2]
[321763196,1712505049635,-349.05579081,0.00024931,2]
[321763197,1712505049644,-550.69740149,0.00024931,2]
[321763198,1712505049653,-563.25385225,0.00024931,2]
[321763199,1712505049662,-500.0,0.00024931,2]
[321763200,1712505049671,-500.0,0.00024931,2]
[321763201,1712505049681,-520.69034722,0.00024931,2]
[321763202,1712505049690,-500.0,0.00024931,2]
[321763203,1712505049699,-500.0,0.00024931,2]
[321763204,1712505049708,-500.0,0.00024931,2]
[321763205,1712505049717,-513.61379737,0.00024931,2]
[321763206,1712505049726,-500.0,0.00024931,2]
[321763207,1712505049735,-500.0,0.00024931,2]
[321763208,1712505049744,-500.0,0.00024931,2]
[321763209,1712505049753,-513.73095447,0.00024931,2]
[321763210,1712505049763,-500.0,0.00024931,2]
[321763211,1712505049774,-509.03139049,0.00024931,2]
[321763212,1712505049783,-642.58098873,0.00024931,2]
[321763213,1712505049792,-500.0,0.00024931,2]
[321763214,1712505049935,-500.0,0.00024931,2]
[321763215,1712505049948,-469.09716055,0.00024931,2]
[321763216,1712505049958,-500.0,0.00024931,2]
[321763217,1712505049968,-500.0,0.00024931,2]
[321763218,1712505049977,-518.01869247,0.00024931,2]
[321763219,1712505049987,-500.0,0.00024931,2]
[321763220,1712505049996,-519.15156437,0.00024931,2]
[321763221,1712505050005,-468.51694038,0.00024931,2]
[321763222,1712505050013,-500.0,0.00024931,2]
[321763223,1712505050023,-500.0,0.00024931,2]
[321763224,1712505050032,-500.0,0.00024931,2]
[321763225,1712505050042,-517.61794728,0.00024931,2]
[321763226,1712505050051,-506.349014,0.00024931,2]
[321763227,1712505050061,-500.0,0.00024931,2]
[321763228,1712505050071,-526.99231389,0.00024931,2]
[321763229,1712505050080,-500.0,0.00024931,2]
[321763230,1712505050089,-500.0,0.00024931,2]
[321763231,1712505050099,-528.26739776,0.00024931,2]
[321763232,1712505050109,-303.93967996,0.00024931,2]
[321763233,1712505050118,-500.0,0.00024931,2]
[321763234,1712505050130,-500.0,0.00024931,2]
[321763235,1712505050139,-567.48357939,0.00024931,2]
[321763236,1712505050148,-500.0,0.00024931,2]
[321763237,1712505050159,-500.0,0.00024931,2]
[321763238,1712505050168,-512.10689504,0.00024931,2]
[321763239,1712505050177,-210.82717613,0.00024931,2]
[321763240,1712505050186,-500.0,0.00024931,2]
[321763241,1712505050197,-500.0,0.00024931,2]
[321763242,1712505050207,-500.0,0.00024931,2]
[321763243,1712505050216,-500.0,0.00024931,2]
[321763244,1712505050226,-500.0,0.00024931,2]
[321763245,1712505050235,-500.0,0.00024931,2]
[321763246,1712505050245,-507.23829913,0.00024931,2]
[321763247,1712505050254,-973.12,0.00024931,2]
[321763248,1712505050263,-973.12,0.00024931,2]
[321763249,1712505050276,-973.12,0.00024931,2]
[321763250,1712505050285,-973.12,0.00024931,2]
[321763251,1712505050295,-973.12,0.00024931,2]
[321763252,1712505050305,-973.12,0.00024931,2]
[321763253,1712505050314,-973.12,0.00024931,2]
[321763254,1712505050324,-973.12,0.00024931,2]
[321763255,1712505050334,-973.12,0.00024931,2]
[321763256,1712505050343,-973.12,0.00024931,2]
[321763257,1712505050352,-973.12,0.00024931,2]
[321763258,1712505050362,-973.12,0.00024931,2]
[321763259,1712505050371,-973.12,0.00024931,2]
[321763260,1712505050380,-973.12,0.00024931,2]
[321763261,1712505050389,-500.0,0.00024931,2]
[321763262,1712505050399,-973.12,0.00024931,2]
[321763263,1712505050409,-500.0,0.00024931,2]
[321763264,1712505050418,-973.12,0.00024931,2]
[321763265,1712505050427,-519.60932357,0.00024931,2]
[321763266,1712505050437,-973.12,0.00024931,2]
[321763267,1712505050447,-973.12,0.00024931,2]
[321763268,1712505050456,-973.12,0.00024931,2]
[321763269,1712505050465,-973.12,0.00024931,2]
[321763270,1712505050475,-973.12,0.00024931,2]
[321763271,1712505050484,-973.12,0.00024931,2]
[321763272,1712505050493,-973.12,0.00024931,2]
[321763273,1712505050502,-973.34,0.00024931,2]
[321763274,1712505050511,-500.0,0.00024931,2]
[321763275,1712505050524,-500.0,0.00024931,2]
[321763276,1712505050532,-500.0,0.00024931,2]
[321763277,1712505050541,-500.0,0.00024931,2]
[321763278,1712505050550,-415.92705467,0.00024931,2]
[321763279,1712505050559,-500.0,0.00024931,2]
[321763280,1712505050568,-500.0,0.00024931,2]
[321763281,1712505050577,-500.0,0.00024931,2]
[321763282,1712505050586,-500.0,0.00024931,2]
[321763283,1712505050596,-500.0,0.00024931,2]
[321763284,1712505050605,-520.69101942,0.00024931,2]
[321763285,1712505050614,-500.0,0.00024931,2]
[321763286,1712505050624,-505.90926616,0.00024931,2]
[321763287,1712505050633,-500.0,0.00024931,2]
[321763288,1712505050642,-500.0,0.00024931,2]
[321763289,1712505050651,-508.64001665,0.00024931,2]
[321763290,1712505050661,-509.82018603,0.00024931,2]
[321763291,1712505050670,-500.0,0.00024931,2]
[321763292,1712505050679,-500.0,0.00024931,2]
[321763293,1712505050688,-500.0,0.00024931,2]
[321763294,1712505050697,-500.0,0.00024931,2]
[321763295,1712505050706,-505.86406939,0.00024931,2]
[321763296,1712505050715,-500.0,0.00024931,2]
[321763297,1712505050724,-201.7251776,0.00024931,10]
[321763298,1712505050733,-500.0,0.00024931,2]
[321763299,1712505050743,-500.0,0.00024931,2]
[321763300,1712505050752,-507.70373924,0.00024931,2]
[321763301,1712505050761,-500.0,0.00024931,2]
[321763302,1712505050772,-500.0,0.00024931,2]
[321763303,1712505050781,-500.0,0.00024931,2]
[321763304,1712505050790,-500.0,0.00024931,2]
[321763305,1712505050799,-500.0,0.00024931,2]
[321763306,1712505050809,-500.0,0.00024931,2]
[321763307,1712505050818,-309.73710012,0.00024931,2]
[321763308,1712505050828,-500.0,0.00024931,2]
[321763309,1712505050837,-500.0,0.00024931,2]
[321763310,1712505050847,-505.10192023,0.00024931,2]
[321763311,1712505050856,-500.0,0.00024931,2]
[321763312,1712505050865,-500.0,0.00024931,2]
[321763313,1712505050874,-500.0,0.00024931,2]
[321763314,1712505050884,-500.0,0.00024931,2]
[321763315,1712505050893,-500.0,0.00024931,2]
[321763316,1712505050902,-500.0,0.00024931,2]
[321763317,1712505050911,-500.0,0.00024931,2]
[321763318,1712505050920,-500.0,0.00024931,2]
[321763319,1712505050930,-500.0,0.00024931,2]
[321763320,1712505050939,-500.0,0.00024931,2]
[321763321,1712505050948,-500.0,0.00024931,2]
[321763322,1712505050957,-500.0,0.00024931,2]
[321763323,1712505050966,-500.0,0.00024931,2]
[321763324,1712505050975,-500.0,0.00024931,2]
[321763325,1712505050984,-500.0,0.00024931,2]
[321763326,1712505050994,-500.0,0.00024931,2]
[321763327,1712505051003,-500.0,0.00024931,2]
[321763328,1712505051013,-500.0,0.00024931,2]
[321763329,1712505051023,-540.23475134,0.00024931,2]
[321763330,1712505051033,-500.0,0.00024931,2]
[321763331,1712505051043,-500.0,0.00024931,2]
[321763332,1712505051052,-500.0,0.00024931,2]
[321763333,1712505051062,-500.0,0.00024931,2]
[321763334,1712505051072,-500.0,0.00024931,2]
[321763335,1712505051082,-382.13826271,0.00024931,2]
[321763336,1712505051091,-500.0,0.00024931,2]
[321763337,1712505051101,-311.56187067,0.00024931,2]
[321763338,1712505051114,-618.85352297,0.00024931,2]
[321763339,1712505051123,-500.0,0.00024931,2]
[321763340,1712505051133,-511.85065455,0.00024931,2]
[321763341,1712505051142,-500.0,0.00024931,2]
[321763342,1712505051152,-500.0,0.00024931,2]
[321763343,1712505051161,-164.65071195,0.00024931,2]
[321763344,1712505051171,-500.0,0.00024931,2]
[321763345,1712505051179,-500.0,0.00024931,2]
[321763346,1712505051190,-500.0,0.00024931,2]
[321763347,1712505051199,-517.71202036,0.00024931,2]
[321763348,1712505051208,-500.0,0.00024931,2]
[321763349,1712505051218,-500.0,0.00024931,2]
[321763350,1712505051227,-500.0,0.00024931,2]
[321763351,1712505051236,-500.0,0.00024931,2]
[321763352,1712505051245,-574.34628501,0.00024931,2]
[321763353,1712505051255,-506.14493416,0.00024931,2]
[321763354,1712505051264,-500.0,0.00024931,2]
[321763355,1712505051274,-500.0,0.00024931,2]
[321763356,1712505051283,-500.0,0.00024931,2]
[321763357,1712505051292,-500.0,0.00024931,2]
[321763358,1712505051301,-500.0,0.00024931,2]
[321763359,1712505051311,-500.0,0.00024931,2]
[321763360,1712505051320,-500.0,0.00024931,2]
[321763361,1712505051329,-500.0,0.00024931,2]
[321763362,1712505051338,-500.0,0.00024931,2]
[321763363,1712505051348,-500.0,0.00024931,2]
[321763364,1712505051357,-500.0,0.00024931,2]
[321763365,1712505051366,-506.27155564,0.00024931,2]
[321763366,1712505051376,-500.0,0.00024931,2]
[321763367,1712505051385,-500.0,0.00024931,2]
[321763368,1712505051396,-539.16906127,0.00024931,2]
[321763369,1712505051405,-500.0,0.00024931,2]
[321763370,1712505051415,-516.62482574,0.00024931,2]
[321763371,1712505051424,-500.0,0.00024931,2]
[321763372,1712505051434,-500.0,0.00024931,2]
[321763373,1712505051443,-500.0,0.00024931,2]
[321763374,1712505051453,-500.0,0.00024931,2]
[321763375,1712505051462,-500.0,0.00024931,2]
[321763376,1712505051472,-500.0,0.00024931,2]
[321763377,1712505051481,-500.0,0.00024931,2]
[321763378,1712505051491,-500.0,0.00024931,2]
[321763379,1712505051501,-500.0,0.00024931,2]
[321763380,1712505051510,-500.0,0.00024931,2]
[321763381,1712505051520,-500.0,0.00024931,2]
[321763382,1712505051529,-500.0,0.00024931,2]
[321763383,1712505051538,-500.0,0.00024931,2]
[321763384,1712505051548,-500.0,0.00024931,2]
[321763385,1712505051557,-526.73194545,0.00024931,2]
[321763386,1712505051566,-500.0,0.00024931,2]
[321763387,1712505051575,-500.0,0.00024931,2]
[321763388,1712505051586,-433.75792318,0.00024931,2]
[321763389,1712505051595,-500.0,0.00024931,2]
[321763390,1712505051604,-500.0,0.00024931,2]
[321763391,1712505051613,-244.35,0.00024931,2]
[321763392,1712505051622,-214.8209567,0.00024931,2]
[321763393,1712505051631,-500.0,0.00024931,2]
[321763394,1712505051641,-626.0617536,0.00024931,2]
[321763395,1712505051651,-502.43268017,0.00024931,2]
[321763396,1712505051661,-500.0,0.00024931,2]
[321763397,1712505051670,-500.0,0.00024931,2]
[321763398,1712505051679,-500.0,0.00024931,2]
[321763399,1712505051688,-500.0,0.00024931,2]
[321763400,1712505051697,-500.0,0.00024931,2]
[321763401,1712505051706,-500.0,0.00024931,2]
[321763402,1712505051715,-500.0,0.00024931,2]
[321763403,1712505051725,-500.0,0.00024931,2]
[321763404,1712505051734,-500.0,0.00024931,2]
[321763405,1712505051744,-603.8554085,0.00024931,2]
[321763406,1712505051753,-509.136103,0.00024931,2]
[321763407,1712505051762,-500.0,0.00024931,2]
[321763408,1712505051773,-500.0,0.00024931,2]
[321763409,1712505051781,-500.0,0.00024931,2]
[321763410,1712505051791,-500.0,0.00024931,2]
[321763411,1712505051799,-505.84573084,0.00024931,2]
[321763412,1712505051809,-500.0,0.00024931,2]
[321763413,1712505051818,-500.0,0.00024931,2]
[321763414,1712505051827,-437.95194804,0.00024931,2]
[321763415,1712505051836,-500.0,0.00024931,2]
[321763416,1712505051845,-500.0,0.00024931,2]
[321763417,1712505051854,-508.00181882,0.00024931,2]
[321763418,1712505051864,-514.99915545,0.00024931,2]
[321763419,1712505051873,-500.0,0.00024931,2]
[321763420,1712505051882,-500.0,0.00024931,2]
[321763421,1712505051891,-500.0,0.00024931,2]
[321763422,1712505051901,-500.0,0.00024931,2]
[321763423,1712505051910,-502.0983351,0.00024931,2]
[321763424,1712505051920,-601.84441612,0.00024931,2]
[321763425,1712505051929,-500.0,0.00024931,2]
[321763426,1712505051938,-500.0,0.00024931,2]
[321763427,1712505051947,-500.0,0.00024931,2]
[321763428,1712505051957,-500.0,0.00024931,2]
[321763429,1712505051966,-587.21350143,0.00024931,2]
[321763430,1712505051975,-500.0,0.00024931,2]
[321763431,1712505051985,-500.0,0.00024931,2]
[321763432,1712505051994,-500.0,0.00024931,2]
[321763433,1712505052002,-500.0,0.00024931,2]
[321763434,1712505052011,-500.0,0.00024931,2]
[321763435,1712505052021,-500.0,0.00024931,2]
[321763436,1712505052030,-500.0,0.00024931,2]
[321763437,1712505052039,-500.0,0.00024931,2]
[321763438,1712505052049,-500.0,0.00024931,2]
[321763439,1712505052059,-500.0,0.00024931,2]
[321763440,1712505052068,-500.0,0.00024931,2]
[321763441,1712505052077,-500.0,0.00024931,2]
[321763442,1712505052087,-500.0,0.00024931,2]
[321763443,1712505052097,-500.0,0.00024931,2]
[321763444,1712505052107,-500.0,0.00024931,2]
[321763445,1712505052121,-500.0,0.00024931,2]
[321763446,1712505052130,-500.0,0.00024931,2]
[321763447,1712505052140,-500.0,0.00024931,2]
[321763448,1712505052150,-500.0,0.00024931,2]
[321763449,1712505052161,-500.0,0.00024931,2]
[321763450,1712505052171,-500.0,0.00024931,2]
[321763451,1712505052180,-500.0,0.00024931,2]
[321763452,1712505052190,-500.0,0.00024931,2]
[321763453,1712505052200,-500.0,0.00024931,2]
[321763454,1712505052209,-500.0,0.00024931,2]
[321763455,1712505052218,-176.75,0.00024931,2]
[321763456,1712505052227,-500.0,0.00024931,2]
[321763457,1712505052237,-500.0,0.00024931,2]
[321763458,1712505052246,-500.0,0.00024931,2]
[321763459,1712505052256,-500.0,0.00024931,2]
[321763460,1712505052265,-500.0,0.00024931,2]
[321763461,1712505052275,-500.0,0.00024931,2]
[321763462,1712505052284,-500.0,0.00024931,2]
[321763463,1712505052293,-500.0,0.00024931,2]
[321763464,1712505052303,-202.49008618,0.00024931,2]
[321763465,1712505052314,-500.0,0.00024931,2]
[321763466,1712505052324,-500.0,0.00024931,2]
[321763467,1712505052334,-500.0,0.00024931,2]
[321763468,1712505052345,-500.0,0.00024931,2]
[321763469,1712505052355,-317.42416054,0.00024931,2]
[321763470,1712505052365,-500.0,0.00024931,2]
[321763471,1712505052374,-500.0,0.00024931,2]
[321763472,1712505052383,-500.0,0.00024931,2]
[321763473,1712505052394,-500.0,0.00024931,2]
[321763474,1712505052403,-500.0,0.00024931,2]
[321763475,1712505052413,-500.0,0.00024931,2]
[321763476,1712505052422,-432.31322191,0.00024931,2]
[321763477,1712505052432,-500.0,0.00024931,2]
[321763478,1712505052441,-500.0,0.00024931,2]
[321763479,1712505052451,-500.0,0.00024931,2]
[321763480,1712505052460,-500.0,0.00024931,2]
[321763481,1712505052470,-500.0,0.00024931,2]
[321763482,1712505052480,-500.0,0.00024931,2]
[321763483,1712505052490,-500.0,0.00024931,2]
[321763484,1712505052500,-500.0,0.00024931,2]
[321763485,1712505052510,-500.0,0.00024931,2]
[321763486,1712505052521,-500.0,0.00024931,2]
[321763487,1712505052531,-500.0,0.00024931,2]
[321763488,1712505052541,-500.0,0.00024931,2]
[321763489,1712505052550,-500.0,0.00024931,2]
[321763490,1712505052559,-500.0,0.00024931,2]
[321763491,1712505052568,-500.0,0.00024931,2]
[321763492,1712505052577,-500.0,0.00024931,2]
[321763493,1712505052586,-500.0,0.00024931,2]
[321763494,1712505052596,-500.0,0.00024931,2]
[321763495,1712505052605,-268.90072701,0.00024931,2]
[321763496,1712505052615,-500.0,0.00024931,2]
[321763497,1712505052624,-500.0,0.00024931,2]
[321763498,1712505052634,-500.0,0.00024931,2]
[321763499,1712505052645,-500.0,0.00024931,2]
[321763500,1712505052654,-500.0,0.00024931,2]
[321763501,1712505052664,-500.0,0.00024931,2]
[321763502,1712505052673,-500.0,0.00024931,2]
[321763503,1712505052682,-500.0,0.00024931,2]
[321763504,1712505052691,-500.0,0.00024931,2]
[321763505,1712505052852,-408.08254348,0.00024931,2]
[321763506,1712505052864,-500.0,0.00024931,2]
[321763507,1712505052875,-500.0,0.00024931,2]
[321763508,1712505052884,-500.0,0.00024931,2]
[321763509,1712505052893,-500.0,0.00024931,2]
[321763510,1712505052902,-292.61948457,0.00024931,2]
[321763511,1712505052912,-500.0,0.00024931,2]
[321763512,1712505052921,-500.0,0.00024931,2]
[321763513,1712505052930,-500.0,0.00024931,2]